Cogmind - Beta 15 @@@ ROGUE MODE // 2025.08.31 @ 18:54:43 Player: honbee Result: Self-destructed Performance ------------- Evolutions (1) 500 Regions Visited (3) 600 Robots Destroyed (32) 160 Value Destroyed (796) 796 Prototype IDs (1) 20 Alien Tech Used (0) 0 Bonus (0) 0 TOTAL SCORE: 2076 Bonus ------- None Cogmind --------- Core Integrity 1/400 Matter 233/300 Energy 263/280 System Corruption 1% Temperature Cool (0) Movement Flying (200) Ox2 Location -9/Materials Parts ------- > --- POWER (1) -------- Cooled Ion Engine > --- PROPULSION (4) --- Flight Unit > --- UTILITY (2) ------ Power Shielding Hacking Suite > --- WEAPON (2) ------- (None) > --- INVENTORY (5) ---- Ion Engine Peak State ------------ > --- POWER ------------ Cooled Ion Engine > --- PROPULSION ------- Flight Unit Flight Unit Flight Unit Flight Unit > --- UTILITY ---------- Small Storage Unit Sensor Array > --- WEAPON ----------- Beam Cannon Shotgun > --- INVENTORY -------- Ion Engine Light Ion Engine Hover Unit Hover Unit Power Shielding Hacking Suite Small Laser [Rating: 12] Favorites ----------- Power Light Ion Engine Engine Light Ion Engine Propulsion Flight Unit Treads Light Treads Leg Aluminum Leg Hover Unit Improved Hover Unit Flight Unit Flight Unit Utility Sensor Array Device Sensor Array Storage Small Storage Unit Processor Signal Interpreter Hackware Hacking Suite Protection Power Shielding Weapon Medium Laser Energy Gun Medium Laser Energy Cannon Beam Cannon Ballistic Gun Shotgun Launcher Rocket Launcher Build | -11 -10 -10 -9 ------- Run | Yrd Mat Min Mat Slots Evolved 2 | . . . 2 Power . | . . . . Propulsion 2 | . . . 2 Utility . | . . . . Weapon . | . . . . Parts Attached 31 | 6 13 . 12 Power 5 | 1 1 . 3 Engine 5 | 1 1 . 3 Core . | . . . . Reactor . | . . . . Propulsion 10 | 2 4 . 4 Treads 2 | 2 . . . Leg 2 | . 2 . . Wheel . | . . . . Hover 1 | . . . 1 Flight 5 | . 2 . 3 Utility 7 | 1 4 . 2 Device 1 | . 1 . . Storage 2 | 1 1 . . Processor 1 | . 1 . . Hackware 1 | . . . 1 Protection 2 | . 1 . 1 Artifact . | . . . . Weapon 9 | 2 4 . 3 Energy Gun 4 | 2 2 . . Energy Cannon 1 | . 1 . . Ballistic Gun 3 | . 1 . 2 Ballistic Cannon . | . . . . Launcher 1 | . . . 1 Special Weapon . | . . . . Impact Weapon . | . . . . Slashing Weapon . | . . . . Piercing Weapon . | . . . . Special Melee Weapon . | . . . . Unidentified Prototypes 1 | . . . 1 Parts Lost 16 | . 1 . 15 Power 3 | . . . 3 Propulsion 5 | . . . 5 Utility 2 | . . . 2 Weapon 6 | . 1 . 5 Highest Loss Streak 15 | . 1 . 15 To Critical Strikes . | . . . . Average Backups 5 | 3 7 5 4 Power 1 | . 1 1 1 Propulsion 2 | 2 3 2 . Utility 1 | . 1 2 1 Weapon . | . . . . Tool/Special . | . . . . Unused Backups 9 | . 6 . 3 Power 1 | . . . 1 Propulsion 6 | . 4 . 2 Utility 2 | . 2 . . Weapon . | . . . . Tool/Special . | . . . . Average Slot Usage (%) 92 | . 98 100 78 Engine 12 | . 14 14 9 Treads 5 | . 9 . . Leg 7 | . 11 . . Flight 15 | . 6 28 30 Device 11 | . 13 14 7 Storage 8 | . 10 . 5 Processor 3 | . 3 14 . Protection 1 | . . . 5 Energy Gun 16 | . 23 14 1 Energy Cannon 4 | . 2 14 6 Ballistic Gun 3 | . 1 . 8 Peak Build Rating 12 | 6 7 7 12 Average Rating 7 | 4 6 7 8 On Entrance 5 | . 6 7 7 Naked Turns . | . . . . Heaviest Build 30 | 12 30 8 15 Greatest Support 40 | 40 40 8 16 Greatest Overweight (x) 3 | . 3 . 2 Average Overweight (x) . | . . . . Largest Inventory Capacity 15 | 8 15 5 8 Average Capacity 8 | 7 10 5 6 Most Carried 9 | 6 9 5 7 Average Carried 6 | 4 7 5 4 Final Capacity 8 | 8 5 5 5 Final Carried 6 | 6 5 5 1 Class Distribution -------------------- 82% | Mutant 17% | Sprinter Dominant Class ---------------- Mutant | -10/Materials Mutant | -10/Mines Sprinter | -9/Materials Resources | -11 -10 -10 -9 ----------- Run | Yrd Mat Min Mat Matter Collected 628 | 185 232 . 211 Remotely . | . . . . Salvage Created 906 | 26 413 . 467 Parts 72 | 2 32 . 38 Haulers Intercepted 1 | . 1 . . Recyclers Shooed 2 | . 1 . 1 Parts Field Recycled . | . . . . Retrieved Matter . | . . . . Parts Self-Destructed . | . . . . Prevented . | . . . . Kills | -11 -10 -10 -9 ------- Run | Yrd Mat Min Mat Combat Hostiles Destroyed 27 | . 13 . 14 Guns 20 | . 13 . 7 Cannons 2 | . . . 2 AOE 5 | . . . 5 Classes Destroyed 8 | 1 4 . 3 Worker 1 | 1 . . . Builder 1 | . . . 1 Hauler 1 | . 1 . . Operator 1 | . . . 1 Watcher 1 | . 1 . . Swarmer 9 | . 6 . 3 Grunt 14 | . 7 . 7 Sentry 4 | . . . 4 Best Kill Streak 7 | 1 4 . 7 Combat Bots Only 6 | . 3 . 6 Max Kills in Single Turn 5 | 1 2 . 5 Gunslinging . | . . . . Exploded 3 | . . . 3 Melee . | . . . . Uniques/NPCs Destroyed . | . . . . Combat | -11 -10 -10 -9 -------- Run | Yrd Mat Min Mat Hostile Shots Fired 200 | . 76 2 122 Missed 65 | . 27 1 37 Hits 135 | . 49 1 85 Melee 8 | . . . 8 Projectile 127 | . 49 1 77 Critical Strikes 3 | . . . 3 Damage Taken 1643 | . 487 14 1142 Core 486 | . 87 . 399 Absorbed by Shields . | . . . . Redirected to Shielding 48 | . . . 48 Core Remaining (%) 82 | 100 . 65 . Volleys Fired 78 | 1 43 . 34 Largest 2 | 2 2 . 2 Hottest 100 | 90 100 . 83 Shots Fired 144 | 2 83 . 59 Gun 116 | 2 80 . 34 Cannon 25 | . 3 . 22 Launcher 3 | . . . 3 Special . | . . . . Kinetic 41 | . 11 . 30 Thermal 77 | 1 50 . 26 Explosive 3 | . . . 3 Electromagnetic 23 | 1 22 . . Robot Hit Streak 12 | . 6 . 12 Robot Miss Streak 4 | . 4 . 4 Penetration Max . | . . . . Secondary Targets 1 | . 1 . . Max Gunslinging Chain 1 | . 1 . . Shots Hit Robots 80 | . 44 . 36 Core Hits 53 | 1 23 . 29 Critical Kills . | . . . . Critical Parts Destroyed . | . . . . Critical Strikes . | . . . . Melee Attacks . | . . . . Impact . | . . . . Slashing . | . . . . Piercing . | . . . . Sneak Attacks . | . . . . Combat Hostiles . | . . . . Follow-up Attacks . | . . . . Damage Inflicted 1699 | 13 672 . 1014 Guns 995 | 13 614 . 368 Cannons 245 | . 35 . 210 Explosions 436 | . . . 436 Melee . | . . . . Ramming 23 | . 23 . . Kinetic 441 | . 94 . 347 Thermal 647 | . 416 . 231 Explosive 436 | . . . 436 Electromagnetic 152 | 13 139 . . Impact . | . . . . Slashing . | . . . . Piercing . | . . . . Highest Corruption 1 | . . . 1 Average Corruption 1 | . . . 1 Corruption Purged . | . . . . Corruption Blocked . | . . . . Effects 2 | . . . 2 Message Errors 1 | . . . 1 Matter Fused 1 | . . . 1 Overload Shots . | . . . . Overflow Damage . | . . . . Projectiles . | . . . . Explosions . | . . . . Melee . | . . . . Knockbacks . | . . . . Impact . | . . . . Kinetic . | . . . . Secondary . | . . . . Self-Inflicted Damage . | . . . . Shots . | . . . . Rammed . | . . . . Targets Rammed 3 | . 3 . . Kicked 3 | . 3 . . Crushed . | . . . . Highest Temperature 359 | 30 359 . 276 Average Temperature 118 | 18 114 . 127 Received Heat Transfer 522 | . 195 . 327 Effects 3 | . 2 . 1 Shutdowns 1 | . 1 . . Energy Bleed 1 | . . . 1 Short Circuit 1 | . 1 . . Siege Activations . | . . . . Martial Activations . | . . . . Shielding Activations . | . . . . Robots Disrupted . | . . . . Combat Hostiles . | . . . . Robots Corrupted . | . . . . Combat Hostiles . | . . . . Parts Fried . | . . . . Impact Corruptions . | . . . . Robots Melted . | . . . . Combat Hostiles . | . . . . Parts Melted 4 | . 2 . 2 Heat Transferred 1619 | . 1125 . 494 Parts Sabotaged . | . . . . Parts Stolen . | . . . . Parts Stripped . | . . . . Power Chain Reactions . | . . . . Alert | -11 -10 -10 -9 ------- Run | Yrd Mat Min Mat Maximum Alert Level 1 | . 1 . 1 Low Security (%) 94 | 100 96 100 86 Level 1 5 | . 3 . 13 Level 2 . | . . . . Level 3 . | . . . . Level 4 . | . . . . Level 5 . | . . . . High Security . | . . . . Max Security . | . . . . Peak Influence 266 | 5 205 76 266 Initial 76 | . 3 76 25 Average 82 | . 77 71 125 Influence Increases 876 | 5 400 . 471 Destroy 0b10 Robot/C 540 | . 260 . 280 Destroy 0b10 Robot/NC 25 | 5 10 . 10 Destroy Leader 104 | . 44 . 60 Successful Hack 35 | . 25 . 10 Disable Machine 15 | . . . 15 Destroy Structure 22 | . 1 . 21 Partial Spotted 45 | . . . 45 Lose Combat Pursuer 90 | . 60 . 30 Influence Decreases 670 | . 208 131 331 Entered New Map 164 | . 2 121 41 Time Decay 346 | . 196 10 140 Lost Part 160 | . 10 . 150 Squads Dispatched 5 | . 4 . 1 Investigation 3 | . 2 . 1 Extermination . | . . . . Reinforcement 2 | . 2 . . Assault . | . . . . Garrison . | . . . . Intercept . | . . . . Searches Triggered . | . . . . Construction Impeded . | . . . . Haulers Reinforced . | . . . . Active Scanning Responses . | . . . . Cargo Convoy Interrupts . | . . . . Stealth | -11 -10 -10 -9 --------- Run | Yrd Mat Min Mat Distress Signals 6 | . 3 . 3 Communications Jammed . | . . . . Distress Signals . | . . . . Times Spotted 50 | . 24 2 24 Peak Tracking Total 13 | . 7 2 13 Tactical Retreats 2 | . 1 . 1 Traps | -11 -10 -10 -9 ------- Run | Yrd Mat Min Mat Traps Triggered . | . . . . Indirectly . | . . . . Trap Hack Attempts . | . . . . Triggered . | . . . . Disarmed . | . . . . Reprogrammed . | . . . . Reused . | . . . . Traps Extracted . | . . . . Installed . | . . . . Triggered . | . . . . Machines | -11 -10 -10 -9 ---------- Run | Yrd Mat Min Mat Machines Disabled 1 | . . . 1 Max in Single Turn 1 | . . . 1 Machines Repaired . | . . . . Machines Dismantled . | . . . . Machines Sabotaged . | . . . . Overloaded Fab Kills . | . . . . Hacking | -11 -10 -10 -9 --------- Run | Yrd Mat Min Mat Machines Accessed 10 | . 6 . 4 Terminals 7 | . 4 . 3 Fabricators . | . . . . Repair Stations . | . . . . Recycling Units 3 | . 2 . 1 Scanalyzers . | . . . . Garrison Access . | . . . . Total Hacks 32 | . 19 . 13 Successful 17 | . 12 . 5 Failed 15 | . 7 . 8 Catastrophic 1 | . . . 1 Database Lockouts . | . . . . Manual 32 | . 19 . 13 Terminals 22 | . 11 . 11 Fabricators . | . . . . Repair Stations . | . . . . Recycling Units 10 | . 8 . 2 Scanalyzers . | . . . . Garrison Access . | . . . . Terminal Hacks . | . . . . Fabricator Hacks . | . . . . Repair Station Hacks . | . . . . Recycling Unit Hacks 2 | . 2 . . Retrieve Components 2 | . 2 . . Scanalyzer . | . . . . Garrison Access Hacks . | . . . . Unauthorized Hacks 13 | . 8 . 5 Terminals 10 | . 6 . 4 Track 2 | . 2 . . Assimilate 2 | . 1 . 1 Botnet 4 | . 3 . 1 Operators 2 | . . . 2 Fabricators . | . . . . Repair Stations . | . . . . Recycling Units 3 | . 2 . 1 Reject 3 | . 2 . 1 Scanalyzers . | . . . . Garrison Access . | . . . . Data Cores Recovered 1 | . . . 1 Used 1 | . . . 1 Hacking Detections 10 | . 6 . 4 Full Trace Events 3 | . 2 . 1 Feedback Events 1 | . . . 1 Corruption 1 | . . . 1 Feedback Blocked . | . . . . Robot Schematics Acquired . | . . . . Robots Built . | . . . . Authchips . | . . . . Time . | . . . . Total Robot Build Rating . | . . . . Part Schematics Acquired . | . . . . Parts Built . | . . . . Authchips . | . . . . Time . | . . . . Total Part Build Rating . | . . . . Parts Repaired . | . . . . Time . | . . . . Parts Recycled . | . . . . Recycled Matter . | . . . . Retrieved Matter . | . . . . Retrieved Components 10 | . 10 . . Parts Scanalyzed . | . . . . Part Schematics Acquired . | . . . . Parts Damaged . | . . . . Bothacking | -11 -10 -10 -9 ------------ Run | Yrd Mat Min Mat Used RIF Installer . | . . . . Robots Hacked . | . . . . Non-combat . | . . . . Combat . | . . . . Robot Hacks Applied . | . . . . Relay Couplers Released . | . . . . Fabnet Peak Effective % . | . . . . Robots Rewired . | . . . . Allies Hacked . | . . . . Hacks Repelled . | . . . . Allies | -11 -10 -10 -9 -------- Run | Yrd Mat Min Mat Total Allies . | . . . . Largest Group . | . . . . Highest-Rated Group . | . . . . Highest-Rated Ally . | . . . . Total Orders . | . . . . Ally Attacks . | . . . . Total Damage . | . . . . Kills . | . . . . Allies Corrupted . | . . . . Allies Melted . | . . . . Intel | -11 -10 -10 -9 ------- Run | Yrd Mat Min Mat Active Infowar (turns) 813 | . 577 38 198 Sensors 813 | . 577 38 198 Robot Analysis Total . | . . . . Derelict Logs Recovered 2 | . . 2 . Drone Launches . | . . . . Drone Recoveries . | . . . . Exploration | -11 -10 -10 -9 ------------- Run | Yrd Mat Min Mat Turns Passed 1033 | 105 598 38 292 Spaces Moved 928 | 57 444 102 325 Core 9 | 3 1 . 5 Treads 156 | 54 102 . . Legs 81 | . 81 . . Wheels . | . . . . Hover 38 | . . . 38 Flight 644 | . 260 102 282 Fastest Speed 31 | 50 37 37 31 Average Speed 73 | 154 95 37 41 Slowest Speed 260 | 160 260 37 200 Overloaded Moves . | . . . . Propulsion Burnouts . | . . . . Robots Hopped 7 | . 5 1 1 Potential Cave-ins . | . . . . Cave-ins Triggered . | . . . . Exploration Rate (%) 30 | 4 61 27 29 Regions Visited 3 Branch Regions 1 Pre-discovered Areas . | . . . . Known Exits Taken 2 | . 1 1 . Unknown Exits Taken 1 | 1 . . . Scrap Searched 1 | . . 1 . Spaces Dug . | . . . . Terrain Destroyed 27 | . . . 27 Melee . | . . . . Projectile . | . . . . AOE 27 | . . . 27 Terrain Rammed . | . . . . Walls Destroyed . | . . . . Machines Disabled . | . . . . Actions | -11 -10 -10 -9 --------- Run | Yrd Mat Min Mat Total 1112 | 69 526 100 417 Wait 38 | . 5 . 33 Move 912 | 56 434 99 323 Hop 6 | . 4 1 1 Pick Up 23 | 6 11 . 6 Fast Attach 16 | 6 2 . 8 Attach 9 | . 2 . 7 Detach . | . . . . Swap 14 | . 10 . 4 Drop 13 | . 12 . 1 Fire 78 | 1 43 . 34 Melee . | . . . . Ram . | . . . . Kick 3 | . 3 . . Crush . | . . . . Escape Stasis . | . . . . Rewire . | . . . . Trap . | . . . . Miscellaneous . | . . . . Route ------- -11/Scrapyard -10/Materials -10/Mines -9/Materials (discovered 2 exits: Mat / Min) History --------- Turn | Location | Event 6 | -11/Scrapyard | Discovered new exit (range 15) 106 | -11/Scrapyard | Entered Materials 321 | -10/Materials | Build established: Mutant 700 | -10/Materials | Discovered new exit (range 11) 703 | -10/Materials | Identified exit to Mines 704 | -10/Materials | Entered Mines 706 | -10/Mines | Learned 2 Materials zone layouts 734 | -10/Mines | Learned location of 1 exit from Materials 734 | -10/Mines | Discovered new exit (range 8) 737 | -10/Mines | Identified exit to Materials 742 | -10/Mines | Entered Materials 742 | -9/Materials | Evolved 2 slots: Propulsion x2 743 | -9/Materials | Identified exit to Materials 744 | -9/Materials | Identified exit to Mines 939 | -9/Materials | Core integrity fell below 50% 1016 | -9/Materials | Core integrity fell below 20% 1034 | -9/Materials | Self-destructed Last Messages --------------- Lgt. Ion Engine destroyed. K-01 Serf destroyed. Y-45 Defender destroyed. G-34 Mercenary destroyed. T-07 Excavator destroyed. Y-45 Defender destroyed. G-34 Mercenary destroyed. U-05 Engineer destroyed. K-01 Serf collects debris. Rocket Launcher destroyed. K-01 Serf cleans the Fusion Modulator. K-01 Serf collects debris. Acquired 73 matter. Imp. Hover Unit destroyed. K-01 Serf collects debris. K-01 Serf destroyed. Shotgun severed. Acquired Shotgun. Shotgun destroyed. Propulsion Shielding destroyed. Map ----- +----------------------------------------------------+ | | | | | | | | | ?????????????????????????????????????????????????? | | ?????????????????????????????????????????????????? | | ?????????????????????????????????????????????????? | | ?????????????????????????????????????????????????? | | ?????????????????????????????????????????????????? | | ?????????????????????????????????????????????????? | | ##???????????????????????????????????????????????? | | "##??????????########????????????????????????????? | | "##?????????# % #????????????????????????????? | | ""#?????????# #????????????????????????????? | | #?????????#[%! #????????????????????????????? | | #?????????# * ! #????????????????????????????? | | #?????????# #??????????????